[Event "NJSK 2022 Meisjes A&B"]
[Site "Almelo, Netherlands"]
[Date "2022.05.05"]
[Round "5.3"]
[White "Honkoop, Stella"]
[Black "Martinez, Sara"]
[Result "0-1"]
[TimeControl "90min/40moves + 30min + 30sec/move"]
[WhiteElo "1711"]
[BlackElo "1651"]

1. d4 {[%clk 01:30:58]} {[%emt 00:00:02]} d5 {[%clk 01:30:55]} {[%emt
00:00:05]} 2. Bf4 {[%clk 01:31:23]} {[%emt 00:00:05]} c5 {[%clk 01:31:18]}
{[%emt 00:00:07]} 3. e3 {[%clk 01:30:49]} {[%emt 00:01:04]} cxd4 {[%clk
01:31:39]} {[%emt 00:00:09]} 4. exd4 {[%clk 01:31:03]} {[%emt 00:00:16]} Nc6
{[%clk 01:32:00]} {[%emt 00:00:09]} 5. c3 {[%clk 01:31:13]} {[%emt 00:00:20]}
f6 {[%clk 01:32:09]} {[%emt 00:00:21]} 6. Bd3 {[%clk 01:21:49]} {[%emt
00:09:53]} e5 {[%clk 01:32:15]} {[%emt 00:00:24]} 7. dxe5 {[%clk 01:19:57]}
{[%emt 00:02:22]} fxe5 {[%clk 01:27:30]} {[%emt 00:05:15]} 8. Qh5+ {[%clk
01:18:34]} {[%emt 00:01:53]} g6 {[%clk 01:24:40]} {[%emt 00:03:21]} 9. Bxg6+
{[%clk 01:16:22]} {[%emt 00:02:42]} hxg6 {[%clk 01:24:59]} {[%emt 00:00:10]} 10.
Qxh8 {[%clk 01:15:53]} {[%emt 00:00:59]} exf4 {[%clk 01:25:22]} {[%emt
00:00:07]} 11. Qxg8 {[%clk 01:15:33]} {[%emt 00:00:50]} Bf5 {[%clk 01:22:08]}
{[%emt 00:03:44]} 12. Ne2 {[%clk 00:53:12]} {[%emt 00:22:51]} Qb6 {[%clk
01:13:06]} {[%emt 00:09:32]} 13. b3 {[%clk 00:40:10]} {[%emt 00:13:32]} O-O-O
{[%clk 01:10:08]} {[%emt 00:03:28]} 14. Qh7 {[%clk 00:37:25]} {[%emt 00:03:14]}
Bc5 {[%clk 00:57:52]} {[%emt 00:12:47]} 15. O-O {[%clk 00:35:17]} {[%emt
00:02:38]} Re8 {[%clk 00:40:24]} {[%emt 00:17:59]} 16. Nxf4 {[%clk 00:28:44]}
{[%emt 00:07:02]} Bxf2+ {[%clk 00:35:27]} {[%emt 00:05:27]} 17. Kh1 {[%clk
00:29:10]} {[%emt 00:00:05]} Ne7 {[%clk 00:34:59]} {[%emt 00:00:57]} 18. Qf7
{[%clk 00:25:51]} {[%emt 00:03:49]} Kd8 {[%clk 00:29:45]} {[%emt 00:05:44]} 19.
Nxd5 {[%clk 00:23:20]} {[%emt 00:03:01]} Qd6 {[%clk 00:29:31]} {[%emt
00:00:43]} 20. Nxe7 {[%clk 00:19:44]} {[%emt 00:04:06]} Qxh2+ {[%clk 00:29:07]}
{[%emt 00:00:55]} 0-1

[Event "NJSK 2022 Meisjes A&B"]
[Site "Almelo, Netherlands"]
[Date "2022.05.05"]
[Round "5.4"]
[White "Venema, Katja"]
[Black "De Zoeten, Cato"]
[Result "0-1"]
[TimeControl "90min/40moves + 30min + 30sec/move"]
[WhiteElo "1692"]
[BlackElo "1915"]

1. d4 {[%clk 01:30:55]} {[%emt 00:00:06]} Nf6 {[%clk 01:30:53]} {[%emt
00:00:06]} 2. c4 {[%clk 01:31:17]} {[%emt 00:00:08]} g6 {[%clk 01:31:18]}
{[%emt 00:00:05]} 3. Nc3 {[%clk 01:31:39]} {[%emt 00:00:08]} Bg7 {[%clk
01:31:42]} {[%emt 00:00:06]} 4. e4 {[%clk 01:31:55]} {[%emt 00:00:14]} d6
{[%clk 01:32:09]} {[%emt 00:00:04]} 5. Bg5 {[%clk 01:31:45]} {[%emt 00:00:39]}
h6 {[%clk 01:26:25]} {[%emt 00:06:14]} 6. Be3 {[%clk 01:29:17]} {[%emt
00:02:59]} O-O {[%clk 01:23:54]} {[%emt 00:03:01]} 7. Qd2 {[%clk 01:27:45]}
{[%emt 00:02:01]} Ng4 {[%clk 01:14:07]} {[%emt 00:10:17]} 8. Bf4 {[%clk
01:23:03]} {[%emt 00:05:11]} g5 {[%clk 01:11:18]} {[%emt 00:03:19]} 9. Bg3
{[%clk 01:22:07]} {[%emt 00:01:25]} c5 {[%clk 01:11:23]} {[%emt 00:00:26]} 10.
d5 {[%clk 01:13:33]} {[%emt 00:09:04]} Nf6 {[%clk 00:56:14]} {[%emt 00:15:39]}
11. h4 {[%clk 01:09:30]} {[%emt 00:04:33]} g4 {[%clk 00:51:09]} {[%emt
00:05:35]} 12. Bf4 {[%clk 01:05:28]} {[%emt 00:04:32]} Kh7 {[%clk 00:42:04]}
{[%emt 00:09:36]} 13. Bd3 {[%clk 01:02:24]} {[%emt 00:03:34]} Ng8 {[%clk
00:41:35]} {[%emt 00:00:58]} 14. Nge2 {[%clk 00:56:17]} {[%emt 00:06:37]} Kh8
{[%clk 00:31:28]} {[%emt 00:10:37]} 15. Ng3 {[%clk 00:53:15]} {[%emt 00:03:32]}
e5 {[%clk 00:28:04]} {[%emt 00:03:54]} 16. Be3 {[%clk 00:50:20]} {[%emt
00:03:25]} Qe8 {[%clk 00:23:33]} {[%emt 00:05:02]} 17. Nh5 {[%clk 00:43:07]}
{[%emt 00:07:43]} f5 {[%clk 00:22:25]} {[%emt 00:01:37]} 18. Nxg7 {[%clk
00:38:12]} {[%emt 00:05:25]} Kxg7 {[%clk 00:22:47]} {[%emt 00:00:08]} 19. g3
{[%clk 00:32:15]} {[%emt 00:06:26]} Na6 {[%clk 00:18:23]} {[%emt 00:04:54]} 20.
a3 {[%clk 00:31:00]} {[%emt 00:01:45]} Nc7 {[%clk 00:17:41]} {[%emt 00:01:13]}
21. b4 {[%clk 00:29:44]} {[%emt 00:01:45]} b6 {[%clk 00:16:49]} {[%emt
00:01:23]} 22. b5 {[%clk 00:26:32]} {[%emt 00:03:42]} Qg6 {[%clk 00:13:42]}
{[%emt 00:03:37]} 23. O-O-O {[%clk 00:20:52]} {[%emt 00:06:09]} a6 {[%clk
00:13:05]} {[%emt 00:01:09]} 24. a4 {[%clk 00:17:36]} {[%emt 00:03:46]} axb5
{[%clk 00:11:09]} {[%emt 00:02:25]} 25. axb5 {[%clk 00:16:41]} {[%emt
00:01:25]} Qf7 {[%clk 00:10:17]} {[%emt 00:01:21]} 26. Qb2 {[%clk 00:14:39]}
{[%emt 00:02:33]} Bd7 {[%clk 00:08:07]} {[%emt 00:02:41]} 27. Kc2 {[%clk
00:13:37]} {[%emt 00:01:31]} fxe4 {[%clk 00:04:49]} {[%emt 00:03:47]} 28. Nxe4
{[%clk 00:11:41]} {[%emt 00:02:26]} Bf5 {[%clk 00:03:50]} {[%emt 00:01:31]} 29.
Nc3 {[%clk 00:10:17]} {[%emt 00:01:54]} Bxd3+ {[%clk 00:03:41]} {[%emt
00:00:38]} 30. Rxd3 {[%clk 00:09:46]} {[%emt 00:01:01]} Qg6 {[%clk 00:03:26]}
{[%emt 00:00:45]} 31. Qb3 {[%clk 00:06:43]} {[%emt 00:03:34]} Ra7 {[%clk
00:02:17]} {[%emt 00:01:39]} 32. Na4 {[%clk 00:04:48]} {[%emt 00:02:24]} Rfa8
{[%clk 00:02:32]} {[%emt 00:00:14]} 33. Ra1 {[%clk 00:04:40]} {[%emt 00:00:39]}
Ne7 {[%clk 00:02:32]} {[%emt 00:00:30]} 34. Kd2 {[%clk 00:04:18]} {[%emt
00:00:51]} Nf5 {[%clk 00:02:28]} {[%emt 00:00:34]} 35. Qd1 {[%clk 00:04:02]}
{[%emt 00:00:46]} Nxe3 {[%clk 00:02:30]} {[%emt 00:00:29]} 36. Rxe3 {[%clk
00:03:48]} {[%emt 00:00:44]} Ne8 {[%clk 00:02:36]} {[%emt 00:00:24]} 37. Rea3
{[%clk 00:03:41]} {[%emt 00:00:36]} Qe4 {[%clk 00:02:24]} {[%emt 00:00:43]} 38.
Qe2 {[%clk 00:02:15]} {[%emt 00:01:56]} Nf6 {[%clk 00:01:55]} {[%emt 00:00:59]}
39. Qxe4 {[%clk 00:01:32]} {[%emt 00:01:13]} Nxe4+ {[%clk 00:02:22]} {[%emt
00:00:02]} 40. Ke3 {[%clk 00:01:46]} {[%emt 00:00:17]} Nc3 {[%clk 00:01:30]}
{[%emt 00:01:23]} 41. Rxc3 {[%clk 00:02:01]} {[%emt 00:00:15]} Rxa4 {[%clk
00:01:57]} {[%emt 00:00:02]} 42. Rxa4 {[%clk 00:01:58]} {[%emt 00:00:33]} Rxa4
{[%clk 00:02:21]} {[%emt 00:00:07]} 43. Ke4 {[%clk 00:01:23]} {[%emt 00:01:05]}
Kg6 {[%clk 00:01:20]} {[%emt 00:01:30]} 44. Rc2 {[%clk 00:27:23]} {[%emt
00:04:30]} Ra3 {[%clk 00:24:51]} {[%emt 00:06:59]} 45. Rc1 {[%clk 00:27:23]}
{[%emt 00:00:31]} Ra2 {[%clk 00:24:32]} {[%emt 00:00:49]} 46. Rf1 {[%clk
00:24:51]} {[%emt 00:03:01]} Rd2 {[%clk 00:17:46]} {[%emt 00:07:16]} 47. Ke3
{[%clk 00:23:35]} {[%emt 00:01:46]} Rd4 {[%clk 00:14:36]} {[%emt 00:03:40]} 48.
Rc1 {[%clk 00:23:00]} {[%emt 00:01:05]} Kf5 {[%clk 00:13:48]} {[%emt 00:01:18]}
49. Rc2 {[%clk 00:20:48]} {[%emt 00:02:42]} e4 {[%clk 00:13:46]} {[%emt
00:00:32]} 50. Rc1 {[%clk 00:20:30]} {[%emt 00:00:48]} Ke5 {[%clk 00:12:55]}
{[%emt 00:01:21]} 51. Rc3 {[%clk 00:20:20]} {[%emt 00:00:41]} h5 {[%clk
00:13:03]} {[%emt 00:00:21]} 52. Rc1 {[%clk 00:19:55]} {[%emt 00:00:54]} Rd3+
{[%clk 00:13:14]} {[%emt 00:00:19]} 53. Ke2 {[%clk 00:20:16]} {[%emt 00:00:09]}
Kd4 {[%clk 00:13:30]} {[%emt 00:00:15]} 54. Rc2 {[%clk 00:20:02]} {[%emt
00:00:43]} Rc3 {[%clk 00:13:29]} {[%emt 00:00:32]} 55. Rxc3 {[%clk 00:19:44]}
{[%emt 00:00:48]} Kxc3 {[%clk 00:13:54]} {[%emt 00:00:05]} 56. Ke3 {[%clk
00:20:00]} {[%emt 00:00:14]} Kxc4 {[%clk 00:14:19]} {[%emt 00:00:04]} 57. Kxe4
{[%clk 00:20:23]} {[%emt 00:00:07]} Kb3 {[%clk 00:12:16]} {[%emt 00:02:33]} 58.
Kf5 {[%clk 00:20:10]} {[%emt 00:00:43]} c4 {[%clk 00:12:41]} {[%emt 00:00:05]}
59. Ke6 {[%clk 00:20:35]} {[%emt 00:00:06]} c3 {[%clk 00:12:52]} {[%emt
00:00:19]} 60. Kxd6 {[%clk 00:20:32]} {[%emt 00:00:33]} c2 {[%clk 00:13:18]}
{[%emt 00:00:03]} 61. Kc6 {[%clk 00:20:12]} {[%emt 00:00:51]} c1=Q+ {[%emt
00:00:06]} 62. Kxb6 {[%clk 00:20:34]} {[%emt 00:00:07]} Kb4 {[%clk 00:13:55]}
{[%emt 00:00:18]} 63. Ka6 {[%emt 00:01:49]} Qa1+ {[%clk 00:13:08]} 64. Kb6
{[%clk 00:20:54]} {[%emt 00:00:08]} Qf6+ {[%clk 00:13:04]} {[%emt 00:00:32]} 65.
Kc7 {[%clk 00:21:01]} {[%emt 00:00:24]} Kc5 {[%clk 00:13:25]} {[%emt 00:00:09]}
0-1

[Event "NJSK 2022 Meisjes A&B"]
[Site "Almelo, Netherlands"]
[Date "2022.05.05"]
[Round "5.5"]
[White "Tangarife Ramirez, Katja"]
[Black "Ganeshram, Nirupa"]
[Result "1-0"]
[TimeControl "90min/40moves + 30min + 30sec/move"]
[WhiteElo "1623"]
[BlackElo "1546"]

1. d4 {[%clk 01:30:57]} {[%emt 00:00:03]} d5 {[%clk 01:30:54]} {[%emt
00:00:07]} 2. Nf3 {[%clk 01:31:12]} {[%emt 00:00:14]} e6 {[%clk 01:31:03]}
{[%emt 00:00:20]} 3. e3 {[%clk 01:30:55]} {[%emt 00:00:47]} c5 {[%clk
01:30:46]} {[%emt 00:00:47]} 4. c3 {[%clk 01:30:56]} {[%emt 00:00:29]} Nc6
{[%clk 01:29:34]} {[%emt 00:01:43]} 5. Bd3 {[%clk 01:30:29]} {[%emt 00:00:57]}
Nf6 {[%clk 01:27:37]} {[%emt 00:02:28]} 6. O-O {[%clk 01:29:51]} {[%emt
00:01:08]} Be7 {[%clk 01:25:54]} {[%emt 00:02:14]} 7. dxc5 {[%clk 01:27:58]}
{[%emt 00:02:22]} Bxc5 {[%clk 01:25:50]} {[%emt 00:00:34]} 8. Nbd2 {[%clk
01:27:16]} {[%emt 00:01:11]} O-O {[%clk 01:22:28]} {[%emt 00:03:53]} 9. Qe2
{[%clk 01:25:40]} {[%emt 00:02:06]} e5 {[%clk 01:17:12]} {[%emt 00:05:46]} 10.
e4 {[%clk 01:23:53]} {[%emt 00:02:17]} d4 {[%clk 01:11:00]} {[%emt 00:06:43]}
11. Nc4 {[%clk 01:19:23]} {[%emt 00:04:59]} Qe7 {[%clk 01:04:33]} {[%emt
00:06:57]} 12. b4 {[%clk 01:16:36]} {[%emt 00:03:17]} Bd6 {[%clk 00:50:13]}
{[%emt 00:14:50]} 13. b5 {[%clk 01:14:40]} {[%emt 00:02:27]} Nd8 {[%clk
00:49:29]} {[%emt 00:01:14]} 14. cxd4 {[%clk 01:13:09]} {[%emt 00:02:01]} Bg4
{[%clk 00:44:57]} {[%emt 00:05:02]} 15. Bb2 {[%clk 01:02:55]} {[%emt 00:10:43]}
Bxf3 {[%clk 00:40:51]} {[%emt 00:04:36]} 16. Qxf3 {[%clk 01:02:41]} {[%emt
00:00:44]} Nd7 {[%clk 00:30:22]} {[%emt 00:10:59]} 17. Ne3 {[%clk 00:54:06]}
{[%emt 00:09:05]} exd4 {[%clk 00:23:31]} {[%emt 00:07:22]} 18. Nf5 {[%clk
00:47:24]} {[%emt 00:07:11]} Qe6 {[%clk 00:21:19]} {[%emt 00:02:42]} 19. Bxd4
{[%clk 00:43:23]} {[%emt 00:04:30]} Be5 {[%clk 00:17:01]} {[%emt 00:04:49]} 20.
Bxe5 {[%clk 00:33:34]} {[%emt 00:10:19]} Nxe5 {[%clk 00:17:09]} {[%emt
00:00:23]} 21. Qg3 {[%clk 00:32:47]} {[%emt 00:01:16]} Qf6 {[%clk 00:16:01]}
{[%emt 00:01:38]} 22. Bc2 {[%clk 00:27:57]} {[%emt 00:05:21]} Ne6 {[%clk
00:15:02]} {[%emt 00:01:29]} 23. h4 {[%clk 00:24:24]} {[%emt 00:04:02]} Kh8
{[%clk 00:10:17]} {[%emt 00:05:16]} 24. f4 {[%clk 00:20:43]} {[%emt 00:04:10]}
Nc4 {[%clk 00:05:42]} {[%emt 00:05:06]} 25. e5 {[%clk 00:18:44]} {[%emt
00:02:29]} Qg6 {[%clk 00:05:28]} {[%emt 00:00:44]} 26. Qc3 {[%clk 00:17:47]}
{[%emt 00:01:27]} Nb6 {[%clk 00:04:32]} {[%emt 00:01:27]} 27. Qf3 {[%clk
00:17:08]} {[%emt 00:01:07]} f6 {[%clk 00:02:57]} {[%emt 00:02:06]} 28. Qxb7
{[%clk 00:14:46]} {[%emt 00:02:51]} Nc5 {[%clk 00:01:33]} {[%emt 00:01:54]} 29.
Qe7 {[%clk 00:12:19]} {[%emt 00:02:55]} Ncd7 {[%clk 00:01:35]} {[%emt
00:00:30]} 30. e6 {[%clk 00:11:36]} {[%emt 00:01:13]} Rfe8 {[%clk 00:01:18]}
{[%emt 00:00:48]} 31. Qd6 {[%clk 00:10:19]} {[%emt 00:01:47]} Nf8 {[%clk
00:01:15]} {[%emt 00:00:32]} 32. e7 {[%clk 00:08:15]} {[%emt 00:02:35]} Nfd7
{[%clk 00:01:24]} {[%emt 00:00:21]} 33. Qd2 {[%clk 00:06:58]} {[%emt 00:01:45]}
Nc4 {[%clk 00:01:12]} {[%emt 00:00:44]} 34. Qxd7 {[%clk 00:07:03]} {[%emt
00:00:25]} Qg4 {[%clk 00:01:12]} {[%emt 00:00:28]} 35. Qd4 {[%clk 00:06:37]}
{[%emt 00:00:58]} Rac8 {[%clk 00:01:16]} {[%emt 00:00:26]} 36. Rac1 {[%clk
00:06:23]} {[%emt 00:00:44]} g6 {[%clk 00:01:21]} {[%emt 00:00:25]} 37. Qxf6+
{[%clk 00:06:25]} {[%emt 00:00:28]} Kg8 {[%clk 00:01:43]} {[%emt 00:00:08]} 38.
Qg7# {[%clk 00:06:46]} {[%emt 00:00:09]} 1-0

[Event "NJSK 2022 Meisjes A&B"]
[Site "Almelo, Netherlands"]
[Date "2022.05.05"]
[Round "5.6"]
[White "Jonkman, Amelia"]
[Black "Mensing, Luana"]
[Result "1-0"]
[TimeControl "90min/40moves + 30min + 30sec/move"]
[WhiteElo "1552"]
[BlackElo "1604"]

1. d4 {[%clk 01:30:59]} {[%emt 00:00:01]} d5 {[%clk 01:30:53]} {[%emt
00:00:07]} 2. c4 {[%clk 01:31:23]} {[%emt 00:00:06]} c6 {[%clk 01:31:16]}
{[%emt 00:00:07]} 3. Nc3 {[%clk 01:31:34]} {[%emt 00:00:18]} Nf6 {[%clk
01:31:24]} {[%emt 00:00:22]} 4. Nf3 {[%clk 01:31:47]} {[%emt 00:00:17]} Bf5
{[%clk 01:30:46]} {[%emt 00:01:08]} 5. Bg5 {[%clk 01:29:56]} {[%emt 00:02:21]}
Ne4 {[%clk 01:25:04]} {[%emt 00:06:12]} 6. e3 {[%clk 01:23:09]} {[%emt
00:07:16]} f6 {[%clk 01:16:23]} {[%emt 00:09:12]} 7. Bf4 {[%clk 01:20:31]}
{[%emt 00:03:08]} g5 {[%clk 01:06:49]} {[%emt 00:10:04]} 8. Bg3 {[%clk
01:19:52]} {[%emt 00:01:09]} e6 {[%clk 01:01:28]} {[%emt 00:05:50]} 9. Nxe4
{[%clk 01:06:31]} {[%emt 00:13:51]} Bxe4 {[%clk 00:57:05]} {[%emt 00:04:53]} 10.
a3 {[%clk 01:03:27]} {[%emt 00:03:34]} Nd7 {[%clk 00:49:58]} {[%emt 00:07:38]}
11. Nd2 {[%clk 00:53:57]} {[%emt 00:09:59]} Bg6 {[%clk 00:46:47]} {[%emt
00:03:40]} 12. b4 {[%clk 00:48:30]} {[%emt 00:05:58]} a6 {[%clk 00:38:40]}
{[%emt 00:08:38]} 13. Nb3 {[%clk 00:40:52]} {[%emt 00:08:08]} b6 {[%clk
00:22:26]} {[%emt 00:16:44]} 14. Be2 {[%clk 00:22:03]} {[%emt 00:19:18]} Be7
{[%clk 00:18:50]} {[%emt 00:04:06]} 15. O-O {[%clk 00:20:14]} {[%emt 00:02:19]}
h5 {[%clk 00:15:25]} {[%emt 00:03:55]} 16. h3 {[%clk 00:19:45]} {[%emt
00:00:59]} f5 {[%clk 00:12:49]} {[%emt 00:03:06]} 17. cxd5 {[%clk 00:16:41]}
{[%emt 00:03:34]} exd5 {[%clk 00:08:50]} {[%emt 00:04:29]} 18. Qc2 {[%clk
00:13:33]} {[%emt 00:03:38]} Qc8 {[%clk 00:06:48]} {[%emt 00:02:31]} 19. Rfc1
{[%clk 00:12:11]} {[%emt 00:01:52]} b5 {[%clk 00:01:33]} {[%emt 00:05:45]} 20.
Qxc6 {[%clk 00:11:32]} {[%emt 00:01:10]} Qxc6 {[%clk 00:01:50]} {[%emt
00:00:13]} 21. Rxc6 {[%clk 00:11:56]} {[%emt 00:00:05]} Kf7 {[%clk 00:02:04]}
{[%emt 00:00:17]} 22. Bf3 {[%clk 00:11:32]} {[%emt 00:00:54]} Nf6 {[%clk
00:01:57]} {[%emt 00:00:36]} 23. Be5 {[%clk 00:10:32]} {[%emt 00:01:31]} Rhd8
{[%clk 00:01:38]} {[%emt 00:00:49]} 24. Bxf6 {[%clk 00:09:59]} {[%emt
00:01:02]} Bxf6 {[%clk 00:02:01]} {[%emt 00:00:07]} 25. Nc5 {[%clk 00:09:49]}
{[%emt 00:00:40]} Kg7 {[%clk 00:00:46]} {[%emt 00:01:46]} 26. Ne6+ {[%clk
00:09:37]} {[%emt 00:00:42]} 1-0

[Event "NJSK 2022 Meisjes A&B"]
[Site "Almelo, Netherlands"]
[Date "2022.05.05"]
[Round "5.7"]
[White "Bogouslavskii, Veronique"]
[Black "Wortman, Manixia"]
[Result "1-0"]
[TimeControl "90min/40moves + 30min + 30sec/move"]
[WhiteElo "1618"]
[BlackElo "1432"]

1. d4 {[%clk 01:30:57]} {[%emt 00:00:01]} Nf6 {[%clk 01:30:55]} {[%emt
00:00:06]} 2. Bg5 {[%clk 01:31:23]} {[%emt 00:00:03]} e6 {[%clk 01:31:09]}
{[%emt 00:00:17]} 3. Nd2 {[%clk 01:31:19]} {[%emt 00:00:33]} Be7 {[%clk
01:30:17]} {[%emt 00:01:23]} 4. e3 {[%clk 01:31:28]} {[%emt 00:00:21]} d5
{[%clk 01:30:23]} {[%emt 00:00:24]} 5. Bd3 {[%clk 01:31:14]} {[%emt 00:00:43]}
c5 {[%clk 01:29:45]} {[%emt 00:01:09]} 6. c3 {[%clk 01:31:12]} {[%emt
00:00:31]} Nc6 {[%clk 01:29:44]} {[%emt 00:00:32]} 7. f4 {[%clk 01:30:08]}
{[%emt 00:01:33]} h6 {[%clk 01:29:23]} {[%emt 00:00:52]} 8. Bxf6 {[%clk
01:30:13]} {[%emt 00:00:25]} Bxf6 {[%clk 01:29:40]} {[%emt 00:00:14]} 9. Ngf3
{[%clk 01:29:02]} {[%emt 00:01:40]} Bd7 {[%clk 01:28:14]} {[%emt 00:01:57]} 10.
O-O {[%clk 01:28:15]} {[%emt 00:01:17]} O-O {[%clk 01:26:12]} {[%emt 00:02:32]}
11. Ne5 {[%clk 01:24:13]} {[%emt 00:04:31]} Nxe5 {[%clk 01:24:35]} {[%emt
00:02:08]} 12. fxe5 {[%clk 01:22:50]} {[%emt 00:01:53]} Bg5 {[%clk 01:24:36]}
{[%emt 00:00:30]} 13. Qe1 {[%clk 01:18:54]} {[%emt 00:04:25]} Rc8 {[%clk
01:20:06]} {[%emt 00:05:00]} 14. Nf3 {[%clk 01:13:54]} {[%emt 00:05:30]} Qe7
{[%clk 01:09:15]} {[%emt 00:11:21]} 15. Nxg5 {[%clk 01:12:28]} {[%emt
00:01:55]} Qxg5 {[%clk 01:09:33]} {[%emt 00:00:12]} 16. Rf3 {[%clk 01:10:57]}
{[%emt 00:02:01]} f5 {[%clk 01:06:13]} {[%emt 00:03:51]} 17. exf6 {[%clk
01:08:57]} {[%emt 00:02:29]} Rxf6 {[%clk 01:06:31]} {[%emt 00:00:12]} 18. Rg3
{[%clk 01:08:37]} {[%emt 00:00:50]} Qh5 {[%clk 01:05:55]} {[%emt 00:01:06]} 19.
Qd2 {[%clk 01:00:01]} {[%emt 00:09:05]} c4 {[%clk 01:03:59]} {[%emt 00:02:27]}
20. Bc2 {[%clk 00:59:35]} {[%emt 00:00:56]} Rcf8 {[%clk 01:03:46]} {[%emt
00:00:43]} 21. Re1 {[%clk 00:56:31]} {[%emt 00:03:34]} Qf7 {[%clk 01:03:31]}
{[%emt 00:00:45]} 22. Qc1 {[%clk 00:51:52]} {[%emt 00:05:09]} Bc6 {[%clk
00:56:04]} {[%emt 00:07:57]} 23. Qb1 {[%clk 00:45:04]} {[%emt 00:07:17]} b5
{[%clk 00:50:02]} {[%emt 00:06:33]} 24. Bg6 {[%clk 00:41:19]} {[%emt 00:04:14]}
Qe7 {[%clk 00:46:59]} {[%emt 00:03:34]} 25. e4 {[%clk 00:32:36]} {[%emt
00:09:13]} dxe4 {[%clk 00:30:25]} {[%emt 00:17:04]} 26. Bxe4 {[%clk 00:31:16]}
{[%emt 00:01:50]} Bxe4 {[%clk 00:30:25]} {[%emt 00:00:30]} 27. Qxe4 {[%clk
00:30:34]} {[%emt 00:01:12]} Qf7 {[%clk 00:30:34]} {[%emt 00:00:21]} 28. Rf3
{[%clk 00:28:35]} {[%emt 00:02:28]} Rxf3 {[%clk 00:28:15]} {[%emt 00:02:50]} 29.
Qxf3 {[%clk 00:25:42]} {[%emt 00:03:22]} Qxf3 {[%clk 00:27:25]} {[%emt
00:01:20]} 30. gxf3 {[%clk 00:26:07]} {[%emt 00:00:06]} Rf6 {[%clk 00:27:08]}
{[%emt 00:00:48]} 31. Kg2 {[%clk 00:26:11]} {[%emt 00:00:24]} Kf7 {[%clk
00:27:00]} {[%emt 00:00:39]} 32. Re5 {[%clk 00:25:51]} {[%emt 00:00:51]} Rf5
{[%clk 00:26:45]} {[%emt 00:00:44]} 33. f4 {[%clk 00:13:28]} {[%emt 00:12:53]}
a6 {[%clk 00:26:13]} {[%emt 00:01:02]} 34. Kg3 {[%clk 00:11:11]} {[%emt
00:02:46]} g5 {[%clk 00:24:19]} {[%emt 00:02:23]} 35. fxg5 {[%clk 00:08:09]}
{[%emt 00:03:32]} hxg5 {[%clk 00:23:34]} {[%emt 00:01:15]} 36. Rc5 {[%clk
00:03:39]} {[%emt 00:05:00]} Kf6 {[%clk 00:22:05]} {[%emt 00:01:59]} 37. b3
{[%clk 00:02:32]} {[%emt 00:01:37]} cxb3 {[%clk 00:20:31]} {[%emt 00:02:04]} 38.
axb3 {[%clk 00:02:34]} {[%emt 00:00:28]} Rd5 {[%clk 00:20:29]} {[%emt
00:00:32]} 39. Kf3 {[%clk 00:01:15]} {[%emt 00:01:49]} Rf5+ {[%clk 00:16:10]}
{[%emt 00:04:49]} 40. Ke3 {[%clk 00:00:47]} {[%emt 00:00:58]} g4 {[%clk
00:15:58]} {[%emt 00:00:41]} 41. b4 {[%clk 00:25:05]} {[%emt 00:06:13]} Rf1
{[%clk 00:43:58]} {[%emt 00:02:30]} 42. Rc6 {[%clk 00:22:03]} {[%emt 00:03:31]}
Rh1 {[%clk 00:34:45]} {[%emt 00:09:43]} 43. Kf4 {[%clk 00:20:47]} {[%emt
00:01:46]} Rxh2 {[%clk 00:33:54]} {[%emt 00:01:21]} 44. Kxg4 {[%clk 00:20:00]}
{[%emt 00:01:17]} Rc2 {[%clk 00:32:59]} {[%emt 00:01:25]} 45. d5 {[%clk
00:18:50]} {[%emt 00:01:41]} Kf7 {[%clk 00:32:36]} {[%emt 00:00:52]} 46. dxe6+
{[%clk 00:18:33]} {[%emt 00:00:48]} Ke7 {[%clk 00:32:54]} {[%emt 00:00:12]} 47.
Kf5 {[%clk 00:17:55]} {[%emt 00:01:08]} Rf2+ {[%clk 00:31:54]} {[%emt
00:01:29]} 48. Ke5 {[%clk 00:17:41]} {[%emt 00:00:44]} Re2+ {[%clk 00:31:42]}
{[%emt 00:00:43]} 49. Kd5 {[%clk 00:17:21]} {[%emt 00:00:49]} Rd2+ {[%clk
00:31:21]} {[%emt 00:00:52]} 50. Kc5 {[%clk 00:17:37]} {[%emt 00:00:13]} Ra2
{[%clk 00:29:47]} {[%emt 00:02:04]} 51. Kb6 {[%clk 00:17:53]} {[%emt 00:00:14]}
Ra3 {[%clk 00:30:02]} {[%emt 00:00:15]} 52. Kb7 {[%clk 00:17:19]} {[%emt
00:01:03]} a5 {[%clk 00:29:50]} {[%emt 00:00:43]} 53. bxa5 {[%clk 00:17:06]}
{[%emt 00:00:43]} Rxa5 {[%clk 00:29:18]} {[%emt 00:01:03]} 54. Kb6 {[%clk
00:17:25]} {[%emt 00:00:10]} 1-0